bitfinex/quotes_BTCUSD_20251117
["timestamp","ask_amount","ask_price","bid_price","bid_amount"]
[1763357503954,0.08612427,95359.0,95358.0,0.42935874]
[1763357505310,0.08612427,95359.0,95358.0,0.50940277]
[1763357506400,0.08648106,95359.0,95358.0,0.50940277]
[1763357508033,0.08648106,95359.0,95358.0,0.45940277]
[1763357508241,0.08648106,95359.0,95358.0,0.50940277]
[1763357509939,0.08648106,95359.0,95358.0,5.50940277]
[1763357516671,0.08404,95359.0,95358.0,5.78240277]
[1763357516953,0.0002,95360.0,95359.0,5.41641874]
[1763357517113,0.0002,95370.0,95369.0,0.09341874]
[1763357517315,0.00024427,95370.0,95369.0,0.22735874]
[1763357517901,0.00024427,95370.0,95369.0,0.32735874]
[1763357518980,0.00024427,95370.0,95369.0,0.65035874]
[1763357519186,0.0002,95380.0,95379.0,0.09341874]
[1763357519354,0.00024427,95380.0,95379.0,0.09341874]
[1763357519958,0.00024427,95380.0,95379.0,0.19341874]
[1763357521605,0.00024427,95380.0,95379.0,0.32735874]
[1763357525488,0.08428427,95380.0,95379.0,0.32735874]
[1763357525919,0.08486046,95380.0,95379.0,0.28394]
[1763357529061,0.08486046,95380.0,95379.0,0.23394]
[1763357529264,0.08486046,95380.0,95379.0,0.13394]
[1763357530155,0.08486046,95380.0,95373.0,0.05]
[1763357530374,0.01516,95378.0,95370.0,0.05]
[1763357531020,0.73340779,95380.0,95370.0,0.05]
[1763357531485,0.48901995,95380.0,95370.0,0.05]
[1763357531718,0.73340779,95380.0,95370.0,0.05]
[1763357532430,0.48901995,95380.0,95370.0,0.05]
[1763357534897,0.48901995,95380.0,95379.0,0.05]
[1763357535140,0.00024427,95380.0,95379.0,0.05]
[1763357535523,0.08428427,95380.0,95379.0,0.05]
[1763357535739,0.08486046,95380.0,95379.0,0.05]
[1763357536405,0.08486046,95380.0,95372.0,0.05]
[1763357536767,0.08428427,95380.0,95372.0,0.05]
[1763357538830,0.08428427,95380.0,95369.0,0.05]
[1763357539048,0.48877568,95379.0,95369.0,0.05]
[1763357540372,0.016,95370.0,95361.0,0.13394]
[1763357540978,0.02278,95369.0,95361.0,0.13394]
[1763357541644,0.73316352,95371.0,95361.0,0.13394]
[1763357541845,0.03152971,95375.0,95361.0,0.13394]
[1763357541990,0.48877568,95371.0,95361.0,0.18394]
[1763357543525,0.73316352,95371.0,95361.0,0.18394]
[1763357543729,0.02278,95370.0,95361.0,0.13394]
[1763357544128,0.02741,95362.0,95346.0,0.13394]
[1763357544309,0.48877568,95356.0,95351.0,0.05]
[1763357544509,0.24438784,95360.0,95351.0,0.05]
[1763357544739,0.48877568,95361.0,95353.0,0.1]
[1763357545520,0.08404,95360.0,95353.0,0.1]
[1763357546059,0.08404,95360.0,95359.0,0.05]
[1763357547446,0.08404,95360.0,95357.0,0.05]
[1763357550081,0.01141,95366.0,95357.0,0.05]
[1763357550718,0.01141,95366.0,95349.0,0.08027198]
[1763357550950,0.016,95358.0,95353.0,0.1]
[1763357551170,0.01141,95361.0,95353.0,0.1]
[1763357551390,0.02741,95354.0,95353.0,0.1]
[1763357551604,0.02741,95354.0,95348.0,0.13394]
[1763357552267,0.02741,95354.0,95349.0,0.1]
[1763357552482,0.02741,95354.0,95348.0,0.13394]
[1763357552695,0.016,95349.0,95348.0,0.13394]
[1763357553276,0.05431504,95353.0,95348.0,0.13394]
[1763357553277,0.03153504,95353.0,95348.0,0.13394]
[1763357553683,0.03153504,95353.0,95340.0,0.05]
[1763357553884,0.03153504,95353.0,95340.0,0.05004427]
[1763357554225,0.48877568,95350.0,95340.0,0.05004427]
[1763357554435,0.48877568,95350.0,95340.0,0.15004427]
[1763357555535,0.08408,95349.0,95340.0,0.15004427]
[1763357555906,0.1156175,95349.0,95340.0,0.15004427]
[1763357557511,0.0315375,95349.0,95343.0,0.10510881]
[1763357557716,0.08408,95348.0,95343.0,0.10510881]
[1763357557957,0.08408,95348.0,95347.0,0.05]
[1763357558572,0.08408,95348.0,95347.0,0.15]
[1763357560931,0.48877568,95370.0,95348.0,0.04341874]
[1763357561140,0.48877568,95370.0,95367.0,0.05]
[1763357561342,0.03152937,95374.0,95367.0,0.05]
[1763357561343,0.08432695,95368.0,95367.0,0.05]
[1763357563178,0.08432695,95368.0,95351.0,0.13394]
[1763357563403,0.48877568,95361.0,95360.0,0.05]
[1763357563622,0.08432695,95368.0,95363.0,0.05]
[1763357564337,0.00024695,95368.0,95363.0,0.05]
[1763357565546,0.08408,95367.0,95363.0,0.05]
[1763357567116,0.00024695,95368.0,95366.0,0.05]
[1763357567323,0.00024695,95368.0,95367.0,0.05]
[1763357567530,0.08432695,95368.0,95367.0,0.05]
[1763357568380,0.00024695,95368.0,95367.0,0.05]
[1763357568581,0.08432695,95368.0,95367.0,0.18394]
[1763357568860,0.08432695,95368.0,95367.0,0.28394]
[1763357569544,0.08432695,95368.0,95367.0,0.19341874]
[1763357570510,0.08432695,95368.0,95367.0,0.27265249]
[1763357570923,0.08432695,95368.0,95367.0,0.37265249]
[1763357571122,0.08432695,95368.0,95367.0,0.37365249]
[1763357571633,0.08432695,95368.0,95367.0,2.93905249]
[1763357571883,0.08432695,95368.0,95367.0,0.37365249]
[1763357572091,0.08432695,95368.0,95367.0,0.68822249]
[1763357572514,0.08432695,95368.0,95367.0,0.58822249]
[1763357572723,0.08432695,95368.0,95367.0,0.58922249]
[1763357572927,0.08432695,95368.0,95367.0,0.58822249]
[1763357573356,0.08432695,95368.0,95367.0,0.54480375]
[1763357573776,0.08432695,95368.0,95367.0,0.54380375]
[1763357574439,0.08432695,95368.0,95367.0,0.54580375]
[1763357574646,0.08432695,95368.0,95367.0,0.54480375]
[1763357575754,0.08432695,95368.0,95367.0,0.54380375]
[1763357577870,0.08432695,95368.0,95367.0,0.41457]
[1763357577999,0.12464695,95368.0,95367.0,0.31457]
[1763357578201,0.09994695,95368.0,95367.0,0.31457]
[1763357578405,0.08432695,95368.0,95367.0,0.31457]
[1763357578609,0.08432695,95368.0,95367.0,0.36457]
[1763357580235,0.08432695,95368.0,95367.0,0.31457]
[1763357582497,0.08432695,95368.0,95367.0,0.36457]
[1763357583799,0.08432695,95368.0,95367.0,0.46457]
[1763357585902,0.08432695,95368.0,95367.0,0.41457]
[1763357586108,0.08432695,95368.0,95367.0,0.59851]
[1763357586886,0.08432695,95368.0,95367.0,0.49681]
[1763357587938,0.08432695,95368.0,95367.0,0.59681]
[1763357588291,0.08432695,95368.0,95367.0,0.54022874]
[1763357588292,0.08428695,95368.0,95367.0,0.54022874]
[1763357588843,0.08428695,95368.0,95367.0,0.64022874]
[1763357589286,0.08428695,95368.0,95367.0,0.74022874]
[1763357589854,0.08408,95376.0,95368.0,0.04341874]
[1763357590057,0.08408,95376.0,95375.0,0.15510881]
[1763357590265,0.16812,95376.0,95375.0,0.47135881]
[1763357590666,0.16812,95376.0,95375.0,0.57135881]
[1763357591955,0.16812,95376.0,95375.0,0.70529881]
[1763357597728,0.16812,95376.0,95375.0,0.57135881]
[1763357598004,0.16812,95376.0,95375.0,0.47135881]
[1763357601887,0.08404,95376.0,95375.0,0.57135881]
[1763357602094,0.08414,95376.0,95375.0,0.57135881]
[1763357603501,0.08414,95376.0,95375.0,5.61477755]
[1763357603723,0.08414,95376.0,95375.0,5.74871755]
[1763357604419,0.08404,95376.0,95375.0,5.74871755]
[1763357605097,0.08404,95376.0,95375.0,1.12021755]
[1763357605337,0.08404,95376.0,95375.0,1.10061755]
[1763357605694,0.08404,95376.0,95375.0,1.63831755]
[1763357605895,0.08404,95376.0,95375.0,1.05651755]
[1763357606149,0.08404,95376.0,95375.0,0.74871755]
[1763357606353,0.08404,95376.0,95375.0,0.70529881]
[1763357607517,0.08404,95376.0,95375.0,0.60529881]
[1763357608117,0.08404,95376.0,95375.0,0.55529881]
[1763357608321,0.08404,95376.0,95375.0,0.60529881]
[1763357609331,0.08404,95376.0,95375.0,0.70529881]
[1763357610613,0.08404,95376.0,95375.0,0.60529881]
[1763357611253,0.08404,95376.0,95375.0,0.31625]
[1763357612128,0.12365,95376.0,95375.0,0.31625]
[1763357612564,0.08404,95376.0,95375.0,0.31625]
[1763357613203,0.01159,95378.0,95375.0,0.31625]
[1763357615673,0.08404,95377.0,95375.0,0.31625]
[1763357618237,0.08404,95377.0,95375.0,0.29749]
[1763357620541,0.03961,95376.0,95375.0,0.27249]
[1763357620912,0.03961,95376.0,95349.0,0.00682]
[1763357621122,0.34913956,95359.0,95349.0,0.00686427]
[1763357621743,0.03153766,95358.0,95349.0,0.00686427]
[1763357622142,0.01557,95350.0,95349.0,4.427e-05]
[1763357622664,0.03961,95350.0,95349.0,4.427e-05]
[1763357622837,0.07114766,95350.0,95349.0,4.427e-05]
[1763357625399,0.56230766,95350.0,95349.0,4.427e-05]
[1763357625905,0.47822766,95350.0,95349.0,4.427e-05]
[1763357626141,0.39414766,95350.0,95349.0,4.427e-05]
[1763357626345,0.44302782,95350.0,95349.0,4.427e-05]
[1763357628441,0.44402782,95350.0,95349.0,4.427e-05]
[1763357631440,0.34913956,95319.0,95306.0,0.13394]
[1763357631687,0.01,95307.0,95306.0,0.00044327]
[1763357632326,0.02563,95307.0,95306.0,0.00044327]
[1763357632584,0.05044,95307.0,95306.0,0.00044327]
[1763357634081,0.02563,95307.0,95306.0,0.00044327]
[1763357635524,0.5416,95307.0,95306.0,0.00044327]
[1763357635755,0.45752,95307.0,95306.0,0.00044327]
[1763357635949,0.37344,95307.0,95306.0,0.00044327]
[1763357637088,0.41493897,95307.0,95306.0,0.00044327]
[1763357637514,0.37344,95307.0,95306.0,0.00044327]
[1763357637689,0.39289948,95307.0,95306.0,0.00044327]
[1763357639735,0.39389948,95307.0,95306.0,0.00044327]
[1763357639941,0.39489948,95307.0,95306.0,0.00044327]
[1763357640295,0.39389948,95307.0,95306.0,0.00044327]
[1763357640686,0.39489948,95307.0,95306.0,0.00044327]
[1763357640889,0.4375444,95307.0,95306.0,0.00044327]
[1763357641090,0.4395444,95307.0,95306.0,0.00044327]
[1763357641460,0.39589948,95307.0,95306.0,0.00044327]
[1763357642753,0.39489948,95307.0,95306.0,0.00044327]
[1763357642892,0.39589948,95307.0,95306.0,0.00044327]
[1763357643500,0.37644,95307.0,95306.0,0.00044327]
[1763357643704,0.39589378,95307.0,95306.0,0.00044327]
[1763357643964,0.4799019,95307.0,95306.0,0.00044327]
[1763357644160,0.00999999,95300.0,95291.0,0.002]
[1763357644407,0.45518881,95292.0,95291.0,0.00204427]
[1763357644578,0.47464259,95292.0,95291.0,0.00204427]
[1763357644778,0.49945259,95292.0,95291.0,0.00204427]
[1763357644990,0.5315463,95292.0,95291.0,0.00204427]
[1763357645200,0.50366115,95292.0,95291.0,0.00204427]
[1763357645408,0.67190115,95292.0,95291.0,0.00204427]
[1763357645688,0.00999999,95290.0,95251.0,0.002]
[1763357645924,0.02708,95271.0,95270.0,0.00044428]
[1763357646105,0.04653378,95271.0,95270.0,0.00044428]
[1763357646311,0.07134378,95271.0,95270.0,0.00044428]
[1763357646592,0.0755529,95271.0,95270.0,0.00044428]
[1763357648262,0.09203122,95271.0,95270.0,0.00044428]
[1763357652020,0.05159122,95271.0,95270.0,0.00044428]
[1763357652214,0.09203122,95271.0,95270.0,0.00044428]
[1763357653408,0.42547108,95271.0,95270.0,0.00044428]
[1763357653535,0.46801819,95271.0,95270.0,0.00044428]
[1763357654305,0.45757833,95271.0,95270.0,0.00044428]
[1763357655501,0.62789833,95271.0,95270.0,0.00044428]
[1763357656620,0.50119122,95271.0,95270.0,0.00044428]
[1763357656896,0.41703122,95271.0,95270.0,0.00044428]
[1763357657651,0.41603122,95271.0,95270.0,0.00044428]
[1763357657880,0.41503122,95271.0,95270.0,0.00044428]
[1763357658090,0.41603122,95271.0,95270.0,0.00044428]
[1763357658292,0.45763434,95271.0,95270.0,0.00044428]
[1763357658495,0.41603122,95271.0,95270.0,0.00044428]
[1763357658862,0.3995529,95271.0,95270.0,0.00044428]
[1763357661233,0.3747429,95271.0,95270.0,0.00044428]
[1763357662026,0.3737429,95271.0,95270.0,0.00044428]
[1763357662242,0.45084612,95271.0,95270.0,0.00044428]
[1763357665161,0.323,95270.0,95251.0,0.002]
[1763357665398,0.45511881,95261.0,95260.0,0.0005329]
[1763357665545,0.49782259,95261.0,95260.0,0.0005329]
[1763357665886,0.39271378,95261.0,95260.0,0.0005329]
[1763357666394,0.43619492,95261.0,95260.0,0.0005329]
[1763357668129,0.43619492,95261.0,95260.0,0.0141629]
[1763357668130,0.02366354,95261.0,95260.0,0.0141629]
[1763357668333,0.01945378,95261.0,95260.0,0.1777929]
[1763357668474,0.01945378,95261.0,95260.0,0.1277929]
[1763357670702,0.01945378,95261.0,95260.0,0.1287929]
[1763357671051,0.01945378,95261.0,95260.0,0.1151629]
[1763357671250,0.01945378,95261.0,95260.0,0.1287929]
[1763357671455,0.01945378,95261.0,95260.0,0.1297929]
[1763357671696,0.01945378,95261.0,95260.0,0.1161629]
[1763357671923,0.01945378,95261.0,95260.0,0.1297929]
[1763357672284,0.01945378,95261.0,95260.0,0.1161629]
[1763357673281,0.01945378,95261.0,95260.0,0.1297929]
[1763357675238,0.01147,95289.0,95260.0,0.2637329]
[1763357675488,0.01147,95289.0,95278.0,0.01363]
[1763357675489,0.18792442,95288.0,95278.0,0.01363]
[1763357675692,0.01960442,95287.0,95278.0,0.01363]
[1763357675920,0.01960442,95286.0,95279.0,0.00682]
[1763357676186,0.16832,95288.0,95279.0,0.00682]
[1763357676187,0.01960442,95285.0,95280.0,0.05]
[1763357676427,0.01960442,95284.0,95283.0,0.05]
[1763357676646,0.27852641,95300.0,95287.0,0.01363]
[1763357676854,0.01959632,95299.0,95287.0,0.01363]
[1763357677074,0.01959632,95299.0,95287.0,0.02726]
[1763357677075,0.01959632,95298.0,95287.0,0.02726]
[1763357677276,0.01959632,95297.0,95287.0,0.02726]
[1763357677482,0.01959632,95296.0,95287.0,0.02726]
[1763357677687,0.01959632,95295.0,95287.0,0.01363]
[1763357677941,0.01959632,95294.0,95287.0,0.01363]
[1763357678124,0.01959632,95293.0,95287.0,0.01363]
[1763357678322,0.323,95299.0,95287.0,0.01363]
[1763357678530,0.01957183,95298.0,95287.0,0.01363]
[1763357678743,0.01957183,95297.0,95287.0,0.01363]
[1763357678943,0.01957183,95296.0,95287.0,0.01363]
[1763357679145,0.01957183,95295.0,95287.0,0.01363]
[1763357679349,0.323,95299.0,95294.0,0.02044]
[1763357679562,0.28999641,95304.0,95294.0,0.02044]
[1763357679778,0.34256532,95303.0,95294.0,0.00681]
[1763357679983,0.01956532,95302.0,95281.0,0.05]
[1763357680157,0.27852641,95291.0,95281.0,0.05]
[1763357680326,0.27852641,95291.0,95280.0,0.01363]
[1763357680545,0.27852641,95291.0,95280.0,0.0637629]
[1763357682956,0.01147,95281.0,95280.0,0.0001329]
[1763357683133,0.01147,95296.0,95272.0,0.01206171]
[1763357683316,0.27852641,95282.0,95275.0,0.1]
[1763357684632,0.27852641,95282.0,95275.0,0.2]
[1763357685034,0.27852641,95290.0,95281.0,0.00681]
[1763357685469,0.27852641,95291.0,95289.0,0.00681]
[1763357685694,0.08416,95290.0,95289.0,0.00681]
[1763357685900,0.08416,95290.0,95282.0,0.00681]
[1763357686100,0.08416,95290.0,95289.0,0.00681]
[1763357686258,0.08416,95290.0,95289.0,0.10681]
[1763357686876,0.08416,95290.0,95289.0,0.10781]
[1763357687074,0.08416,95290.0,95289.0,0.10681]
[1763357687436,0.08416,95290.0,95289.0,0.10881]
[1763357689351,0.01647446,95297.0,95289.0,0.10881]
[1763357690081,0.01647446,95297.0,95291.0,0.1]
[1763357690900,0.01647446,95297.0,95296.0,0.00681]
[1763357691327,0.01647446,95297.0,95291.0,0.001]
[1763357691963,0.01647446,95297.0,95292.0,0.10510881]
[1763357692152,0.01647446,95297.0,95294.0,0.05]
[1763357692351,0.01647446,95297.0,95296.0,0.05]
[1763357692809,0.01147,95327.0,95303.0,0.05]
[1763357693023,0.01147,95327.0,95303.0,0.15]
[1763357693196,0.27852641,95313.0,95303.0,0.15]
[1763357693670,0.27852641,95313.0,95312.0,0.1]
[1763357693884,0.33447,95319.0,95312.0,0.1]
[1763357694088,0.33447,95319.0,95312.0,0.10004426]
[1763357695331,0.01591,95313.0,95312.0,0.10004426]
[1763357695558,0.01591,95313.0,95312.0,4.426e-05]
[1763357695780,0.0403,95313.0,95312.0,4.426e-05]
[1763357696453,0.323,95317.0,95312.0,0.00104426]
[1763357696660,0.323,95317.0,95312.0,4.426e-05]
[1763357696867,0.01591,95313.0,95312.0,4.426e-05]
[1763357697281,0.0403,95313.0,95312.0,4.426e-05]
[1763357699741,0.01147,95319.0,95312.0,4.426e-05]
[1763357700381,0.01591,95313.0,95312.0,4.426e-05]
[1763357700827,0.0403,95313.0,95312.0,4.426e-05]
[1763357702308,0.0403,95313.0,95312.0,0.00104426]
[1763357702512,0.01591,95313.0,95312.0,4.426e-05]
[1763357702872,0.01591,95313.0,95312.0,0.10104426]
[1763357703600,0.0403,95313.0,95312.0,0.10104426]
[1763357703806,0.01591,95313.0,95312.0,4.426e-05]
[1763357703974,0.01147,95319.0,95312.0,0.00104426]
[1763357704359,0.323,95321.0,95312.0,0.10104426]
[1763357705329,0.323,95321.0,95312.0,0.10004426]
[1763357705576,0.55705282,95322.0,95312.0,0.10104426]
[1763357705577,0.323,95319.0,95312.0,0.10104426]
[1763357705984,0.323,95319.0,95312.0,0.15004426]
[1763357706622,0.08412,95320.0,95312.0,0.15004426]
[1763357707011,0.08412,95320.0,95312.0,0.15104426]
[1763357707227,0.27852641,95322.0,95314.0,0.10510881]
[1763357708047,0.01591,95315.0,95312.0,0.00104426]
[1763357708322,0.02738,95313.0,95312.0,4.426e-05]
[1763357708732,0.05177,95313.0,95312.0,0.10004426]
[1763357708929,0.05177,95313.0,95312.0,4.426e-05]
[1763357709338,0.05177,95313.0,95312.0,0.00104426]
[1763357709554,0.05177,95313.0,95312.0,4.426e-05]
[1763357709962,0.05177,95313.0,95312.0,0.00104426]
[1763357711429,0.05177,95313.0,95312.0,4.426e-05]
[1763357711631,0.37477,95313.0,95312.0,4.426e-05]
[1763357711834,0.37477,95313.0,95312.0,0.00104426]
[1763357712654,0.37477,95313.0,95312.0,4.426e-05]
[1763357715326,0.39436161,95313.0,95312.0,4.426e-05]
[1763357715537,0.56260161,95313.0,95312.0,4.426e-05]
[1763357715844,0.56260161,95313.0,95312.0,0.00104426]
[1763357716051,0.54689989,95313.0,95312.0,0.00104426]
[1763357716347,0.47848161,95313.0,95312.0,4.426e-05]
[1763357717730,0.39436161,95313.0,95312.0,4.426e-05]
[1763357723147,0.37477,95313.0,95312.0,4.426e-05]
[1763357723824,0.41083358,95313.0,95312.0,4.426e-05]
[1763357724429,0.39124381,95313.0,95312.0,4.426e-05]
[1763357725421,0.55948381,95313.0,95312.0,4.426e-05]
[1763357728067,0.62594307,95313.0,95312.0,4.426e-05]
[1763357728525,0.47536381,95313.0,95312.0,4.426e-05]
[1763357728719,0.39124381,95313.0,95312.0,4.426e-05]
[1763357731875,0.42279849,95313.0,95312.0,4.426e-05]
[1763357733682,0.39840849,95313.0,95312.0,4.426e-05]
[1763357733892,0.38249849,95313.0,95312.0,4.426e-05]
[1763357734089,0.39833849,95313.0,95312.0,4.426e-05]
[1763357734287,0.42272849,95313.0,95312.0,4.426e-05]
[1763357735111,0.323,95312.0,95273.0,0.10437]
[1763357735359,0.32651552,95283.0,95274.0,0.10437]
[1763357735767,0.32651552,95283.0,95274.0,0.20437]
[1763357736117,0.16325776,95284.0,95274.0,0.20437]
[1763357736299,0.16325776,95284.0,95274.0,0.30437]
[1763357736503,0.16325776,95284.0,95275.0,0.02104]
[1763357736723,0.32651552,95290.0,95277.0,0.05]
[1763357737348,0.32651552,95290.0,95277.0,0.15]
[1763357737755,0.16325776,95287.0,95277.0,0.101]
[1763357738169,0.32651552,95287.0,95277.0,0.101]
[1763357738801,0.16325776,95287.0,95277.0,0.102]
[1763357739027,0.32651552,95287.0,95286.0,0.1]
[1763357739216,0.02439,95288.0,95286.0,0.1]
[1763357739501,0.01584,95287.0,95286.0,0.1]
[1763357739699,0.01126,95289.0,95286.0,0.2]
[1763357739935,0.323,95295.0,95286.0,0.2]
[1763357740165,0.03155846,95293.0,95286.0,0.201]
[1763357740546,0.03155846,95293.0,95286.0,0.2]
[1763357740975,0.03155846,95293.0,95286.0,0.201]
[1763357741108,0.03155846,95293.0,95286.0,0.202]
[1763357741447,0.03155846,95293.0,95286.0,0.201]
[1763357741744,0.03155846,95293.0,95286.0,0.202]
[1763357742047,0.03155846,95293.0,95286.0,0.201]
[1763357742254,0.0271,95287.0,95286.0,0.201]
[1763357742473,0.0271,95287.0,95286.0,0.202]
[1763357742671,0.05149,95287.0,95286.0,0.102]
[1763357742847,0.08305231,95287.0,95286.0,0.102]
[1763357743047,0.08305231,95287.0,95286.0,0.1]
[1763357743657,0.08305231,95287.0,95286.0,0.001]
[1763357744048,0.08305231,95287.0,95273.0,0.00013301]
[1763357744249,0.01584,95274.0,95273.0,0.00013301]
[1763357744578,0.04023,95274.0,95273.0,0.00013301]
[1763357744799,0.07179487,95274.0,95273.0,0.00013301]
[1763357745408,0.24003487,95274.0,95273.0,0.00013301]
[1763357745612,0.24003487,95274.0,95273.0,0.00113301]
[1763357747133,0.19980487,95274.0,95273.0,0.00113301]
[1763357747518,0.23800583,95274.0,95273.0,0.00113301]
[1763357749003,0.06976583,95274.0,95273.0,0.00113301]
[1763357755503,0.23808583,95274.0,95273.0,0.00113301]
[1763357756529,0.15392583,95274.0,95273.0,0.00113301]
[1763357757934,0.13075583,95274.0,95273.0,0.00113301]
[1763357758282,0.15392583,95274.0,95273.0,0.00113301]
[1763357758503,0.13075583,95274.0,95273.0,0.00113301]
[1763357758710,0.15392583,95274.0,95273.0,0.00113301]
[1763357759143,0.13075583,95274.0,95273.0,0.00113301]
[1763357759750,0.15392583,95274.0,95273.0,0.00113301]
[1763357760180,0.13075583,95274.0,95273.0,0.00113301]
[1763357760581,0.01221,95280.0,95273.0,0.00113301]
[1763357761085,0.01221,95292.0,95273.0,0.00113301]
[1763357761086,0.03156348,95278.0,95274.0,0.10510881]
[1763357761343,0.01647384,95310.0,95293.0,0.05]
[1763357761559,0.03155538,95302.0,95293.0,0.05]
[1763357761765,0.01221,95319.0,95293.0,0.05]
[1763357761975,0.03155269,95309.0,95296.0,0.05]
[1763357762421,0.01221,95319.0,95296.0,0.15]
[1763357762627,0.03155066,95313.0,95301.0,0.1]
[1763357763027,0.33521,95319.0,95301.0,0.1]
[1763357763251,0.03155066,95318.0,95310.0,0.1]
[1763357764409,0.03199338,95318.0,95310.0,0.1]
[1763357765315,0.00044272,95318.0,95311.0,0.10510881]
[1763357765517,0.08412,95317.0,95311.0,0.10510881]
[1763357766124,0.08412,95317.0,95312.0,0.1]
[1763357766506,0.01558,95313.0,95312.0,0.1]
[1763357766706,0.01558,95313.0,95292.0,0.1]
[1763357766928,0.3501226,95302.0,95292.0,0.1]
[1763357767312,0.01221,95301.0,95292.0,0.1]
[1763357767514,0.01221,95301.0,95292.0,0.2]
[1763357768133,0.01221,95301.0,95292.0,0.201]
[1763357768337,0.3501226,95302.0,95293.0,0.10510881]
[1763357768536,0.3501226,95303.0,95293.0,0.10510881]
[1763357768979,0.3501226,95303.0,95301.0,0.1]
[1763357769276,0.3501226,95311.0,95301.0,0.1]
[1763357770102,0.02317,95310.0,95301.0,0.1]
[1763357770512,0.02779,95302.0,95301.0,0.1]
[1763357770951,0.05096,95302.0,95266.0,0.04341874]
[1763357771154,0.323,95299.0,95293.0,0.001]
[1763357771364,0.323,95299.0,95260.0,0.0004]
[1763357771365,0.01558,95294.0,95260.0,0.0004]
[1763357771574,0.01558,95294.0,95289.0,0.1]
[1763357771947,0.031558,95293.0,95289.0,0.1]
[1763357772485,0.031558,95293.0,95283.0,0.1]
[1763357772703,0.30991765,95293.0,95283.0,0.1]
[1763357772898,0.323,95292.0,95283.0,0.1]
[1763357773106,0.30991765,95293.0,95280.0,0.1]
[1763357773304,0.30991765,95293.0,95284.0,0.05]
[1763357773684,0.27835965,95293.0,95292.0,0.1]
[1763357775132,0.03155654,95298.0,95292.0,0.101]
[1763357775615,0.08412,95297.0,95292.0,0.101]
[1763357777425,0.08412,95297.0,95292.0,0.1]
[1763357779290,0.03155518,95300.0,95292.0,0.1]
[1763357779499,0.01184,95334.0,95305.0,0.05]
[1763357779766,0.01184,95334.0,95317.0,0.10510881]
[1763357779767,0.27835965,95320.0,95317.0,0.10510881]
[1763357780120,0.04118272,95318.0,95293.0,0.10510881]
[1763357780303,0.04118272,95318.0,95297.0,0.05]
[1763357780304,0.27835965,95310.0,95297.0,0.05]
[1763357780507,0.27835965,95310.0,95307.0,0.1]
[1763357780708,0.01690272,95318.0,95307.0,0.1]
[1763357780709,0.00044272,95318.0,95308.0,0.10510881]
[1763357781570,0.00044272,95318.0,95316.0,0.1]
[1763357783014,0.00044272,95318.0,95316.0,0.075]
[1763357783015,0.04074,95317.0,95316.0,0.075]
[1763357783258,0.04074,95317.0,95273.0,0.10437]
[1763357783259,0.04074,95317.0,95315.0,0.075]
[1763357783463,0.04074,95317.0,95284.0,0.00833]
[1763357783464,0.02428,95316.0,95284.0,0.00833]
[1763357783657,0.27835965,95294.0,95287.0,0.10510881]
[1763357783918,0.5567193,95300.0,95287.0,0.10510881]
[1763357784146,0.5567193,95300.0,95293.0,0.01527]
[1763357784778,0.27835965,95300.0,95293.0,0.01527]
[1763357785186,0.27835965,95300.0,95299.0,0.01527]
[1763357785389,0.08412,95300.0,95299.0,0.01527]
[1763357785575,0.16824,95300.0,95299.0,0.01527]
[1763357789243,0.08412,95300.0,95299.0,0.01527]
[1763357789466,0.08412,95300.0,95299.0,0.0236]
[1763357789667,0.323,95308.0,95299.0,0.04682]
[1763357789870,0.323,95309.0,95307.0,0.00833]
[1763357790071,0.03155279,95308.0,95307.0,0.00833]
[1763357790519,0.03155279,95308.0,95307.0,0.0236]
[1763357790899,0.5731895,95320.0,95307.0,0.04682]
[1763357791104,0.03155186,95314.0,95307.0,0.04682]
[1763357791398,0.03155186,95314.0,95307.0,0.0236]
[1763357791848,0.03155186,95314.0,95313.0,0.01527]
[1763357792019,0.323,95319.0,95313.0,0.01527]
[1763357792522,0.323,95319.0,95307.0,0.00833]
[1763357793061,0.323,95319.0,95308.0,0.02322]
[1763357793238,0.323,95319.0,95317.0,0.01143]
[1763357793482,0.5803193,95327.0,95317.0,0.01143]
[1763357793696,0.323,95326.0,95317.0,0.0267]
[1763357793904,0.323,95326.0,95317.0,0.01143]
[1763357794321,0.02428,95324.0,95307.0,0.00833]
[1763357794529,0.323,95317.0,95307.0,0.00833]
[1763357795146,0.323,95317.0,95307.0,0.03155]
[1763357795573,0.08412,95316.0,95307.0,0.03155]
[1763357795778,0.08412,95316.0,95308.0,0.02322]
[1763357796159,0.08412,95316.0,95307.0,0.00833]
[1763357797700,0.323,95317.0,95307.0,0.00833]
[1763357799080,0.323,95317.0,95308.0,0.02322]
[1763357799291,0.01691346,95318.0,95308.0,0.02322]
[1763357799542,0.01691346,95318.0,95317.0,0.01527]
[1763357800828,0.01691346,95318.0,95317.0,0.03849]
[1763357801213,0.01691346,95318.0,95317.0,0.01527]
[1763357802025,0.01691346,95318.0,95317.0,0.03849]
[1763357802230,0.00044272,95318.0,95317.0,0.03849]
[1763357802431,0.00044272,95318.0,95311.0,0.02322]
[1763357803052,0.00044272,95318.0,95312.0,0.1]
[1763357803253,0.00044272,95318.0,95317.0,0.01527]
[1763357803660,0.00044272,95318.0,95317.0,0.03849]
[1763357804875,0.00044272,95318.0,95317.0,0.03949]
[1763357805495,0.08456272,95318.0,95317.0,0.03949]
[1763357806947,0.08456272,95318.0,95317.0,0.08949]
[1763357807141,0.00044272,95318.0,95317.0,0.08949]
[1763357807463,0.08456272,95318.0,95317.0,0.18949]
[1763357807695,0.08456272,95318.0,95317.0,0.18849]
[1763357808092,0.08456272,95318.0,95317.0,0.18949]
[1763357808332,0.08456272,95318.0,95317.0,0.18849]
[1763357808502,0.08456272,95318.0,95307.0,0.00833]
[1763357808654,0.08456272,95318.0,95317.0,0.001]
[1763357808855,0.08456272,95318.0,95317.0,0.002]
[1763357809277,0.08456272,95318.0,95317.0,0.001]
[1763357809472,0.00044272,95318.0,95317.0,0.001]
[1763357809847,0.00044272,95318.0,95308.0,0.02451]
[1763357810086,0.49003384,95318.0,95315.0,0.1]
[1763357810290,0.00044272,95318.0,95315.0,0.1]
[1763357810463,0.01585,95316.0,95315.0,0.1]
[1763357810671,0.01585,95316.0,95307.0,0.00833]